Cogmind - Beta 16.1 @@@ ROGUE MODE // 2026.02.11 @ 20:23:40 Player: Gamma Result: Destroyed by as-06651 with Assembled Heavy Rifle Performance ------------- Evolutions (0) 0 Regions Visited (2) 400 Robots Destroyed (10) 50 Value Destroyed (414) 414 Prototype IDs (1) 20 Alien Tech Used (0) 0 Bonus (0) 0 TOTAL SCORE: 884 Bonus ------- None Cogmind --------- Core Integrity 0/250 Matter 37/300 Energy 80/160 System Corruption 3% Temperature Cool (0) Movement Walking (120) Location -10/Mines Parts ------- > --- POWER (1) -------- Light Nuclear Core > --- PROPULSION (2) --- Aluminum Leg Aluminum Leg > --- UTILITY (2) ------ Heat Sink Small Storage Unit > --- WEAPON (2) ------- Assault Rifle Improved Light Cannon > --- INVENTORY (8) ---- Large Matter Pod (0) Small Laser Improved Light Cannon Peak State ------------ > --- POWER ------------ Cooled Ion Engine > --- PROPULSION ------- Aluminum Leg Aluminum Leg > --- UTILITY ---------- Small Storage Unit Improved Targeting Computer > --- WEAPON ----------- Improved Light Cannon Improved Light Cannon > --- INVENTORY -------- Light Nuclear Core Aluminum Leg Aluminum Leg Aluminum Leg Heat Sink Large Matter Pod Assault Rifle Grenade Launcher [Rating: 13] Favorites ----------- Power Cooled Ion Engine Engine Cooled Ion Engine Propulsion Aluminum Leg Leg Aluminum Leg Utility Small Storage Unit Device Heat Sink Storage Small Storage Unit Processor Improved Targeting Computer Weapon Assault Rifle Ballistic Gun Assault Rifle Ballistic Cannon Improved Light Cannon Launcher Grenade Launcher Build | -11 -10 -10 ------- Run | Yrd Mat Min Slots Evolved . | . . . Power . | . . . Propulsion . | . . . Utility . | . . . Weapon . | . . . Parts Attached 17 | 6 4 7 Power 3 | 1 1 1 Engine 2 | 1 1 . Core 1 | . . 1 Reactor . | . . . Propulsion 5 | 2 . 3 Treads . | . . . Leg 5 | 2 . 3 Wheel . | . . . Hover . | . . . Flight . | . . . Utility 3 | 1 1 1 Device 1 | . . 1 Storage 1 | 1 . . Processor 1 | . 1 . Hackware . | . . . Protection . | . . . Artifact . | . . . Weapon 6 | 2 2 2 Energy Gun . | . . . Energy Cannon . | . . . Ballistic Gun 2 | 2 . . Ballistic Cannon 3 | . 2 1 Launcher 1 | . . 1 Special Weapon . | . . . Impact Weapon . | . . . Slashing Weapon . | . . . Piercing Weapon . | . . . Special Melee Weapon . | . . . Unidentified Prototypes 1 | . 1 . Parts Lost 6 | . . 6 Power 1 | . . 1 Propulsion 3 | . . 3 Utility 1 | . . 1 Weapon 1 | . . 1 Highest Loss Streak 5 | . . 5 To Critical Strikes . | . . . Average Backups 6 | 2 7 7 Power 1 | . 1 1 Propulsion 2 | 1 2 2 Utility 1 | . . 1 Weapon 2 | . 2 2 Tool/Special . | . . . Unused Backups 6 | . 4 2 Power 1 | . 1 . Propulsion 2 | . 2 . Utility 1 | . . 1 Weapon 2 | . 1 1 Tool/Special . | . . . Average Slot Usage (%) 94 | . 92 99 Engine 11 | . 11 14 Leg 27 | . 28 27 Storage 14 | . 14 14 Processor 12 | . 12 13 Ballistic Gun 13 | . 14 9 Ballistic Cannon 11 | . 10 14 Launcher 1 | . . 4 Peak Build Rating 13 | 6 12 13 Average Rating 10 | 4 10 11 On Entrance 6 | . 6 12 Avg Prop Armor Cover (%) . | . . . Naked Turns . | . . . Heaviest Build 20 | 11 19 20 Greatest Support 20 | 20 20 20 Greatest Overweight (x) . | . . . Average Overweight (x) . | . . . Largest Inventory Capacity 8 | 8 8 8 Average Capacity 7 | 7 8 8 Most Carried 8 | 4 8 8 Average Carried 7 | 2 7 7 Final Capacity 8 | 8 8 8 Final Carried 8 | 4 8 3 Class Distribution -------------------- 100% | Mutant Dominant Class ---------------- Mutant | -10/Materials Mutant | -10/Mines Resources | -11 -10 -10 ----------- Run | Yrd Mat Min Matter Collected 469 | 147 265 57 Remotely . | . . . Salvage Created 293 | . 190 103 Parts 13 | . 9 4 Haulers Intercepted . | . . . Recyclers Shooed . | . . . Parts Field Recycled . | . . . Retrieved Matter . | . . . Parts Self-Destructed . | . . . Prevented . | . . . Parts Restored . | . . . Kills | -11 -10 -10 ------- Run | Yrd Mat Min Combat Hostiles Destroyed 19 | . 6 13 Guns 3 | . 2 1 Cannons 10 | . 4 6 AOE 6 | . . 6 Classes Destroyed 3 | . 1 2 Grunt 8 | . 6 2 Demolisher 2 | . . 2 Assembled 9 | . . 9 Best Kill Streak 9 | . 2 9 Combat Bots Only 9 | . 2 9 Max Kills in Single Turn 2 | . 2 2 Gunslinging . | . . . Exploded 2 | . . 2 Melee . | . . . Uniques/NPCs Destroyed . | . . . Combat | -11 -10 -10 -------- Run | Yrd Mat Min Hostile Shots Fired 70 | . 23 47 Missed 13 | . 5 8 Hits 57 | . 18 39 Melee 4 | . . 4 Projectile 53 | . 18 35 AOE 7 | . . 7 Critical Strikes 1 | . . 1 Part Disruptions 4 | . . 4 Damage Taken 1053 | . 223 830 Core 269 | . 75 194 Absorbed by Shields . | . . . Core Remaining (%) 100 | 100 . . Volleys Fired 52 | . 27 25 Largest 2 | . 2 2 Hottest 66 | . 53 66 Shots Fired 79 | . 42 37 Gun 38 | . 27 11 Cannon 37 | . 15 22 Launcher 4 | . . 4 Special . | . . . Kinetic 75 | . 42 33 Thermal . | . . . Explosive 4 | . . 4 Electromagnetic . | . . . Robot Hit Streak 19 | . 12 19 Robot Miss Streak 2 | . 2 2 Penetration Max . | . . . Secondary Targets . | . . . Shots Hit Robots 58 | . 34 24 Core Hits 37 | . 12 25 Critical Kills . | . . . Critical Parts Destroyed . | . . . Critical Strikes 1 | . . 1 Blast 1 | . . 1 Melee Attacks . | . . . Impact . | . . . Slashing . | . . . Piercing . | . . . Sneak Attacks . | . . . Combat Hostiles . | . . . Follow-up Attacks . | . . . Damage Inflicted 1308 | . 539 769 Guns 389 | . 285 104 Cannons 577 | . 254 323 Explosions 342 | . . 342 Melee . | . . . Ramming . | . . . Kinetic 966 | . 539 427 Thermal . | . . . Explosive 342 | . . 342 Electromagnetic . | . . . Impact . | . . . Slashing . | . . . Piercing . | . . . Highest Corruption 3 | . . 3 Average Corruption 3 | . . 3 Corruption Purged . | . . . Corruption Blocked . | . . . Overload Shots . | . . . Overflow Damage 42 | . . 42 Projectiles 16 | . . 16 Explosions 26 | . . 26 Melee . | . . . Knockbacks 6 | . 3 3 Impact . | . . . Kinetic 6 | . 3 3 Secondary . | . . . Self-Inflicted Damage 57 | . . 57 Shots 3 | . . 3 Rammed . | . . . Targets Rammed . | . . . Kicked . | . . . Crushed . | . . . Highest Temperature 15 | . 9 15 Average Temperature 5 | . 3 7 Received Heat Transfer 356 | . 132 224 Siege Activations . | . . . Martial Activations . | . . . Shielding Activations . | . . . Robots Disrupted . | . . . Combat Hostiles . | . . . Robots Corrupted . | . . . Combat Hostiles . | . . . Parts Fried . | . . . Impact Corruptions . | . . . Robots Melted . | . . . Combat Hostiles . | . . . Parts Melted . | . . . Heat Transferred . | . . . Parts Sabotaged . | . . . Parts Stolen . | . . . Parts Stripped . | . . . Power Chain Reactions . | . . . Alert | -11 -10 -10 ------- Run | Yrd Mat Min Maximum Alert Level . | . . . Low Security (%) 100 | 100 100 100 Level 1 . | . . . Level 2 . | . . . Level 3 . | . . . Level 4 . | . . . Level 5 . | . . . High Security . | . . . Max Security . | . . . Peak Influence 92 | . 78 92 Initial 17 | . . 17 Average 27 | . 20 60 Influence Increases 307 | . 156 151 Destroy 0b10 Robot/C 200 | . 120 80 Destroy Leader 40 | . 20 20 Disable Machine 15 | . . 15 Destroy Structure 22 | . 1 21 Lose Combat Pursuer 30 | . 15 15 Influence Decreases 279 | . 110 169 Entered New Map 29 | . . 29 Time Decay 190 | . 110 80 Lost Part 60 | . . 60 Squads Dispatched 1 | . 1 . Investigation . | . . . Extermination . | . . . Reinforcement 1 | . 1 . Assault . | . . . Garrison . | . . . Intercept . | . . . Searches Triggered . | . . . Construction Impeded . | . . . Haulers Reinforced . | . . . Active Scanning Responses . | . . . Cargo Convoy Interrupts . | . . . Stealth | -11 -10 -10 --------- Run | Yrd Mat Min Distress Signals . | . . . Communications Jammed . | . . . Distress Signals . | . . . Times Spotted 29 | . 11 18 Peak Tracking Total 8 | . 3 8 Tactical Retreats 3 | . 1 2 Traps | -11 -10 -10 ------- Run | Yrd Mat Min Traps Triggered 1 | . 1 . Indirectly . | . . . Trap Hack Attempts . | . . . Triggered . | . . . Disarmed . | . . . Reprogrammed . | . . . Reused . | . . . Traps Extracted . | . . . Installed . | . . . Triggered . | . . . Machines | -11 -10 -10 ---------- Run | Yrd Mat Min Machines Disabled 1 | . . 1 Max in Single Turn 1 | . . 1 Machines Repaired . | . . . Machines Dismantled . | . . . Machines Sabotaged . | . . . Overloaded Fab Kills . | . . . Hacking | -11 -10 -10 --------- Run | Yrd Mat Min Machines Accessed 3 | . 3 . Terminals 3 | . 3 . Fabricators . | . . . Repair Stations . | . . . Recycling Units . | . . . Scanalyzers . | . . . Garrison Access . | . . . Total Hacks 8 | . 8 . Successful 4 | . 4 . Failed 4 | . 4 . Catastrophic 1 | . 1 . Database Lockouts . | . . . Manual 6 | . 6 . Terminals 8 | . 8 . Fabricators . | . . . Repair Stations . | . . . Recycling Units . | . . . Scanalyzers . | . . . Garrison Access . | . . . Terminal Hacks 3 | . 3 . Robot Analysis 1 | . 1 . Locate Traps 2 | . 2 . Fabricator Hacks . | . . . Repair Station Hacks . | . . . Recycling Unit Hacks . | . . . Scanalyzer . | . . . Garrison Access Hacks . | . . . Unauthorized Hacks 1 | . 1 . Terminals 1 | . 1 . Track 1 | . 1 . Fabricators . | . . . Repair Stations . | . . . Recycling Units . | . . . Scanalyzers . | . . . Garrison Access . | . . . Data Cores Recovered . | . . . Used . | . . . Hacking Detections 3 | . 3 . Full Trace Events . | . . . Feedback Events . | . . . Feedback Blocked . | . . . Robot Schematics Acquired . | . . . Robots Built . | . . . Authchips . | . . . Time . | . . . Total Robot Build Rating . | . . . Part Schematics Acquired . | . . . Parts Built . | . . . Authchips . | . . . Time . | . . . Total Part Build Rating . | . . . Part Studies Acquired . | . . . Parts Repaired . | . . . Time . | . . . Parts Recycled . | . . . Recycled Matter . | . . . Retrieved Matter . | . . . Retrieved Components . | . . . Parts Scanalyzed . | . . . Part Schematics Acquired . | . . . Parts Damaged . | . . . Bothacking | -11 -10 -10 ------------ Run | Yrd Mat Min Used RIF Installer . | . . . Robots Hacked . | . . . Non-combat . | . . . Combat . | . . . Robot Hacks Applied . | . . . Relay Couplers Released . | . . . Fabnet Peak Effective % . | . . . Robots Rewired . | . . . Allies Hacked . | . . . Hacks Repelled . | . . . Allies | -11 -10 -10 -------- Run | Yrd Mat Min Total Allies . | . . . Largest Group . | . . . Highest-Rated Group . | . . . Highest-Rated Ally . | . . . Total Orders . | . . . Ally Attacks . | . . . Total Damage . | . . . Kills . | . . . Allies Corrupted . | . . . Allies Melted . | . . . Intel | -11 -10 -10 ------- Run | Yrd Mat Min Active Infowar (turns) . | . . . Robot Analysis Total 1 | . 1 . Derelict Logs Recovered . | . . . Drone Launches . | . . . Drone Recoveries . | . . . Exploration | -11 -10 -10 ------------- Run | Yrd Mat Min Turns Passed 715 | 63 489 163 Spaces Moved 421 | 47 310 64 Core 13 | 13 . . Treads . | . . . Legs 408 | 34 310 64 Wheels . | . . . Hover . | . . . Flight . | . . . Fastest Speed 50 | 50 120 120 Average Speed 117 | 100 120 120 Slowest Speed 120 | 120 120 120 Overloaded Moves . | . . . Propulsion Burnouts . | . . . Robots Hopped . | . . . Potential Cave-ins . | . . . Cave-ins Triggered . | . . . Exploration Rate (%) 23 | 3 49 19 Regions Visited 2 Branch Regions 1 Pre-discovered Areas 1 | . . 1 Known Exits Taken . | . . . Unknown Exits Taken 2 | 1 1 . Scrap Searched . | . . . Spaces Dug 6 | . . 6 Terrain Destroyed 22 | . . 22 Melee . | . . . Projectile 1 | . . 1 AOE 21 | . . 21 Terrain Rammed . | . . . Walls Destroyed . | . . . Machines Disabled . | . . . Actions | -11 -10 -10 --------- Run | Yrd Mat Min Total 558 | 62 386 110 Wait 29 | . 22 7 Move 419 | 46 309 64 Hop . | . . . Pick Up 25 | 10 14 1 Fast Attach . | . . . Attach 15 | 6 3 6 Detach . | . . . Swap 11 | . 4 7 Drop 7 | . 7 . Fire 52 | . 27 25 Melee . | . . . Ram . | . . . Kick . | . . . Crush . | . . . Escape Stasis . | . . . Rewire . | . . . Trap . | . . . Miscellaneous . | . . . Route ------- -11/Scrapyard -10/Materials (discovered 2 exits: [*Min] / [*Sub]) -10/Mines History --------- Turn | Location | Event 8 | -11/Scrapyard | Discovered new exit (range 15) 64 | -11/Scrapyard | Entered Materials 212 | -10/Materials | Discovered new exit (range 7) 312 | -10/Materials | Build established: Mutant 487 | -10/Materials | Discovered new exit (range 16) 553 | -10/Materials | Entered Mines 554 | -10/Mines | Assembled infested the area 554 | -10/Mines | Learned location of Storage (-7) 620 | -10/Mines | Core integrity fell below 50% 697 | -10/Mines | Core integrity fell below 20% 716 | -10/Mines | Destroyed by as-06651 with Assembled Heavy Rifle Last Messages --------------- 00692_ Acquired 9 matter. 00695_ Destroyed Asb. F-torch. 00695_ as-23340 destroyed. 00695_ as-71952 destroyed. 00696_ U-05 Engineer lays Concrete. 00698_ as-17052 destroyed. 00698_ U-05 Engineer lays Concrete. 00700_ Imp. Targeting Computer destroyed. 00700_ System corrupted by crushing effect (+3). 00700_ U-05 Engineer lays Concrete. 00702_ as-28853 destroyed. 00702_ as-02776 destroyed. 00702_ Grenade Launcher destroyed. 00702_ Destroyed Grenade Launcher. 00702_ Aluminum Leg destroyed. 00702_ Destroyed Aluminum Leg. 00704_ Aluminum Leg destroyed. 00708_ SHOP.Sys disabled. 00710_ as-17153 knocked back. 00714_ Cld. Ion Engine destroyed. Map ----- +----------------------------------------------------+ | ????????????????????????????????????????????????? | | ????????????????????????????????????????????????? | | ????????????????????????????????????????????????? | | ????????????????????????????????????????????????? | | ????????????????????????????????????????????????? | | ????????????????????????????????????????????????? | | ????????????????????????????????????????????????? | | ????????????????????????????????????????????????? | | ????????????????????????????????????????????????? | | ????????????????????????????????????????????????? | | ????????????????????????????????????????????????? | | ????????????????????????? ??????????????????????? | | ????????????????????????# ???? #???????????????? | | ????????????????????????# ???? ?????????????? | | ????????????????????????# #??# ???????????? | | ???????????????????????## ## ????????????? | | ???????????????????????# ?????????????? | | ???????????????????????? #?????????????? | | ????????????????????????# #??????????????? | | ????????????????????????# ???????????????? | | ?????????????????????????# ????????????????? | | ???????????????????????### #?????????????????? | | ???????????????????##### # #?????????????????? | | ??????????????????## ##????????????????? | | ?????????????# #### #;#######??????????? | | ?????????????# @ ##########?? | | ?????????????# ## #?? | | ?????????????####### ###### ## """#?? | | ???????????????????# ##????# ## """#?? | | ???????????????????## aa###?????# ## % """#?? | | ????????????????????### % ???????# ## %= #?? | | ??????????????????????# ???????# ## %"""#?? | | ??????????????????????# ??????# *"""#?? | | ??????????????????????" ??????## ""#?? | | ??????????????????????" ??????# #?? | | ??????????????????????# ?????# #?? | | ??????????????????????# a #?????# ##?? | | ??????????????????????# ##?????# ## #??? | | ??????????????????????# #??????# # ###??? | | ??????????????????????# #??????### # #???? | | ???????????????????????# ????????## ##???? | | ?????????????????????????????????????### ##????? | | ???????????????????????????????????????# #?????? | | ?????????????????????????????????????### #?????? | | ???????????????????????????????????### #?????? | | ??????????????????????????????????## #?????? | | ??????????????????????????????????# #?????? | | ??????????????????????????????????# ##????? | | ??????????????????????????????????## #????? | | ???????????????????????????????????#### #????? | +----------------------------------------------------+ Best States ------------- Heat Dissipation 35 Energy Generation 14 Energy Capacity 280 Matter Stores 244 Matter Capacity 300 Sight Range 16 Terrain Scan Density 10 Evasion (%) 55 Targeting Accuracy 6 Item Schematics ----------------- None Robot Schematics ------------------ None Fabricated ------------ Nothing Repaired ---------- Nothing Studied --------- None Alien Tech Used ----------------- None Achievements -------------- None Challenges ------------ None Game ------ Seed SpacefoldShiftNanovents Manual? 0 Play Time 00:15:35 Cumulative 57.6 hours Start 2026.02.11 @ 20:02:16 End 2026.02.11 @ 20:23:40 Sessions 1 Manual Loads 0 Difficulty Rogue Special Mode None Game No. 42 Rogue 42 Adventurer 0 Explorer 0 Win Type - Total 1 Types 1/0/0/0/0/0/0/0/0/0 Lore% 27 Gallery% 36 Achievement% 23 Wizard Run 0 Options --------- Layout 1 ASCII 1 Keyboard 0 Movement Mouse Keybinds 0 Fullscreen 1 Font 32/Tamsyn Map View 50x35 Zoom Use 0% Tactical HUD 1 Map Filters NONE Filters NONE Steam 1 RUN: 54e02458-9516-488a-a19c-4e2c7cefe30d